bitfinex/quotes_BTCUSD_20250727
["timestamp","ask_amount","ask_price","bid_price","bid_amount"]
[1753632760745,0.3187281,119190.0,119180.0,0.59164108]
[1753632761043,0.4501281,119190.0,119180.0,0.59164108]
[1753632761260,0.1344,119190.0,119180.0,0.59164108]
[1753632761486,0.4501281,119190.0,119180.0,0.59164108]
[1753632763360,0.4500881,119190.0,119180.0,0.59164108]
[1753632763621,0.5284069,119190.0,119180.0,0.36544445]
[1753632763850,0.5284069,119190.0,119180.0,0.26137504]
[1753632764068,0.54222647,119190.0,119180.0,0.25298487]
[1753632764303,0.69324726,119190.0,119180.0,0.05999999]
[1753632764533,0.69620726,119190.0,119180.0,0.31065717]
[1753632764791,0.68781737,119190.0,119180.0,0.26065711]
[1753632765026,0.67942741,119190.0,119180.0,0.0844532]
[1753632765247,0.67942741,119190.0,119180.0,0.31904776]
[1753632765466,0.7045968,119190.0,119180.0,0.33582845]
[1753632765696,0.7045968,119190.0,119180.0,0.31904783]
[1753632765915,0.69620719,119190.0,119180.0,0.13445319]
[1753632766404,0.69620719,119190.0,119180.0,0.0844532]
[1753632766645,0.75780719,119190.0,119180.0,0.0844532]
[1753632766890,0.75780719,119190.0,119180.0,0.13445319]
[1753632767118,0.75780719,119190.0,119180.0,0.05999999]
[1753632768669,0.72650719,119190.0,119180.0,0.30226658]
[1753632768963,0.003,119190.0,119180.0,0.52779502]
[1753632769200,0.4500881,119190.0,119180.0,0.52779502]
[1753632769421,0.4500881,119190.0,119180.0,0.45334182]
[1753632770100,0.4500881,119190.0,119180.0,0.40334183]
[1753632770321,0.4501281,119190.0,119180.0,0.40334183]
[1753632770542,0.56084725,119190.0,119180.0,0.25298474]
[1753632770784,0.72864691,119190.0,119180.0,0.01]
[1753632771004,0.76044691,119190.0,119180.0,0.01]
[1753632774209,0.76044691,119190.0,119180.0,0.05999999]
[1753632777774,0.76044691,119190.0,119180.0,0.01]
[1753632777975,0.44675881,119190.0,119180.0,0.05999999]
[1753632778204,0.76248691,119190.0,119180.0,0.05999999]
[1753632779376,0.76248691,119190.0,119180.0,0.01]
[1753632779593,0.76248691,119190.0,119180.0,0.05999999]
[1753632779814,0.76248691,119190.0,119180.0,0.01]
[1753632780328,0.93144151,119190.0,119180.0,0.01]
[1753632780554,1.27144151,119190.0,119180.0,0.01]
[1753632780768,1.18672421,119190.0,119180.0,0.01]
[1753632781214,1.21193021,119190.0,119180.0,0.005]
[1753632781434,0.24860972,119170.0,119160.0,0.04999999]
[1753632781698,0.57058931,119190.0,119170.0,0.01678253]
[1753632781915,0.63991249,119180.0,119170.0,0.22914883]
[1753632782136,0.4469281,119180.0,119170.0,0.31644196]
[1753632782365,0.4469681,119180.0,119170.0,0.31644196]
[1753632782941,0.46374844,119180.0,119170.0,0.31644196]
[1753632783147,0.48052927,119180.0,119170.0,0.31644196]
[1753632783330,0.3492892,119180.0,119170.0,0.31944196]
[1753632783534,0.48891972,119180.0,119170.0,0.31944196]
[1753632783939,0.47213875,119180.0,119170.0,0.31944196]
[1753632784370,0.48052927,119180.0,119170.0,0.31944196]
[1753632784575,0.4805292,119180.0,119170.0,0.31944196]
[1753632784803,0.4805292,119180.0,119170.0,0.32144196]
[1753632785212,0.08499953,119190.0,119180.0,0.2429848]
[1753632785421,0.4498481,119190.0,119180.0,0.31842497]
[1753632785671,0.45823743,119190.0,119180.0,0.32681535]
[1753632786022,0.4666269,119190.0,119180.0,0.32681535]
[1753632786228,0.45823743,119190.0,119180.0,0.32681535]
[1753632786422,0.47501644,119190.0,119180.0,0.32681535]
[1753632786690,0.47501644,119190.0,119180.0,0.32781535]
[1753632787094,0.15928834,119190.0,119180.0,0.32781535]
[1753632787310,0.15928834,119190.0,119180.0,0.33281535]
[1753632787519,0.48340612,119190.0,119180.0,0.33281535]
[1753632787722,0.49179594,119190.0,119180.0,0.33281535]
[1753632787921,0.49179587,119190.0,119180.0,0.33281535]
[1753632788178,0.47501644,119190.0,119180.0,0.33181535]
[1753632788751,0.48340612,119190.0,119180.0,0.33581535]
[1753632789052,0.46662683,119190.0,119180.0,0.33581535]
[1753632789282,0.45823743,119190.0,119180.0,0.33581535]
[1753632789577,0.46662697,119190.0,119180.0,0.33581535]
[1753632789786,0.4666269,119190.0,119180.0,0.33581535]
[1753632789995,0.14250933,119190.0,119180.0,0.33581535]
[1753632790202,0.47501644,119190.0,119180.0,0.33581535]
[1753632790424,0.47501637,119190.0,119180.0,0.33581535]
[1753632790635,0.48340605,119190.0,119180.0,0.33581535]
[1753632790917,0.47501637,119190.0,119180.0,0.33581535]
[1753632791130,0.48340605,119190.0,119180.0,0.33581535]
[1753632791353,0.46662683,119190.0,119180.0,0.33581535]
[1753632791555,0.47501637,119190.0,119180.0,0.33581535]
[1753632791831,0.45823743,119190.0,119180.0,0.33581535]
[1753632792082,0.45823757,119190.0,119180.0,0.33581535]
[1753632792373,0.46662711,119190.0,119180.0,0.33581535]
[1753632792558,0.45823757,119190.0,119180.0,0.33581535]
[1753632792812,0.46662711,119190.0,119180.0,0.33581535]
[1753632793055,0.47501679,119190.0,119180.0,0.33581535]
[1753632793466,0.46662711,119190.0,119180.0,0.33581535]
[1753632793668,0.4498481,119190.0,119180.0,0.33581535]
[1753632793884,0.134,119190.0,119180.0,0.47029265]
[1753632794347,0.4497281,119190.0,119180.0,0.47029265]
[1753632795400,0.3187281,119190.0,119180.0,0.47029265]
[1753632795646,0.4496481,119190.0,119180.0,0.47029265]
[1753632795836,0.13392,119190.0,119180.0,0.47029265]
[1753632796129,0.4496481,119190.0,119180.0,0.47029265]
[1753632797693,0.003,119190.0,119180.0,0.47029265]
[1753632797936,0.13388,119190.0,119180.0,0.53359265]
[1753632798160,0.13388,119190.0,119180.0,0.50049265]
[1753632798847,0.4496081,119190.0,119180.0,0.50049265]
[1753632799596,0.13388,119190.0,119180.0,0.50049265]
[1753632799833,0.003,119190.0,119180.0,0.68078167]
[1753632800063,0.003,119190.0,119180.0,0.78485108]
[1753632800765,0.003,119190.0,119180.0,0.94525108]
[1753632800991,0.003,119190.0,119180.0,1.48252608]
[1753632801456,0.003,119190.0,119180.0,1.82252608]
[1753632801927,0.33248162,119200.0,119190.0,0.37261736]
[1753632802162,0.33248162,119200.0,119190.0,0.52414466]
[1753632802398,0.33248162,119200.0,119190.0,0.62821407]
[1753632802633,0.33248162,119200.0,119190.0,0.67861407]
[1753632803364,0.33296815,119200.0,119190.0,0.67861407]
[1753632803589,0.33296815,119200.0,119190.0,1.01861407]
[1753632803819,0.33296815,119200.0,119190.0,1.11861407]
[1753632804060,0.33296815,119200.0,119190.0,1.01454466]
[1753632804292,0.33296815,119200.0,119190.0,1.03973366]
[1753632804538,0.33296815,119200.0,119190.0,1.04173366]
[1753632805011,1e-08,119200.0,119190.0,1.03973366]
[1753632805245,1e-08,119200.0,119190.0,1.41815625]
[1753632807810,1e-08,119210.0,119200.0,0.76140153]
[1753632808085,1e-08,119210.0,119200.0,3.16028174]
[1753632808542,0.02685355,119260.0,119200.0,3.16028174]
[1753632808543,0.23259279,119280.0,119260.0,0.1928553]
[1753632808770,0.0865181,119270.0,119260.0,0.3233753]
[1753632808973,0.07603419,119270.0,119260.0,0.32337544]
[1753632809184,0.02515201,119270.0,119260.0,0.24299]
[1753632809388,0.49178429,119280.0,119270.0,0.43999999]
[1753632809593,0.50226771,119280.0,119270.0,0.44838432]
[1753632809809,0.50226771,119280.0,119270.0,0.10004831]
[1753632810019,0.49388429,119280.0,119270.0,0.10004831]
[1753632810232,0.49388429,119280.0,119270.0,0.2761194]
[1753632810438,0.49388429,119280.0,119270.0,0.10004831]
[1753632810658,0.54959429,119280.0,119270.0,0.10004831]
[1753632811606,0.49178429,119280.0,119270.0,0.35191338]
[1753632811830,0.49388429,119280.0,119270.0,0.34058933]
[1753632812044,0.4855008,119280.0,119270.0,0.10416831]
[1753632812276,0.4855008,119280.0,119270.0,0.10204831]
[1753632812489,0.4834008,119280.0,119270.0,0.27173507]
[1753632812730,0.1697727,119280.0,119270.0,0.28011926]
[1753632812958,0.4834008,119280.0,119270.0,0.37565711]
[1753632813185,0.4834008,119280.0,119270.0,0.36727299]
[1753632813425,0.01676635,119280.0,119270.0,0.38404123]
[1753632813659,0.51153504,119290.0,119280.0,0.5744396]
[1753632813861,0.52201748,119290.0,119280.0,0.71314295]
[1753632814028,0.51991748,119290.0,119280.0,0.65661623]
[1753632814279,0.34387591,119290.0,119280.0,0.66499909]
[1753632814491,0.33549319,119290.0,119280.0,0.65661595]
[1753632814640,0.34387598,119290.0,119280.0,0.66499909]
[1753632814882,0.003,119290.0,119280.0,0.79209318]
[1753632815081,0.32711054,119290.0,119280.0,0.79209318]
[1753632815289,0.32711054,119290.0,119280.0,0.57395004]
[1753632815488,0.32711054,119290.0,119280.0,0.58233318]
[1753632815695,0.32711047,119290.0,119280.0,0.58233318]
[1753632816126,0.33549283,119290.0,119280.0,0.58233318]
[1753632816574,0.34387541,119290.0,119280.0,0.58233318]
[1753632816752,0.32711039,119290.0,119280.0,0.58233318]
[1753632817125,0.33549283,119290.0,119280.0,0.92233318]
[1753632817698,0.32711039,119290.0,119280.0,0.92233318]
[1753632817924,0.34387527,119290.0,119280.0,0.92233318]
[1753632818162,0.41845064,119290.0,119280.0,0.72668318]
[1753632818390,0.35435785,119290.0,119280.0,0.85680318]
[1753632818640,0.33549276,119290.0,119280.0,0.92221318]
[1753632818863,0.33549276,119290.0,119280.0,0.95491318]
[1753632819301,0.34387527,119290.0,119280.0,0.92221318]
[1753632819751,0.33549276,119290.0,119280.0,0.92221318]
[1753632819977,0.33549276,119290.0,119280.0,0.92121318]
[1753632820204,0.01976466,119290.0,119280.0,0.92121318]
[1753632820428,0.33549276,119290.0,119280.0,0.92121318]
[1753632820892,0.34387527,119290.0,119280.0,0.92321318]
[1753632821316,0.33549276,119290.0,119280.0,0.92321318]
[1753632821537,0.3187281,119290.0,119280.0,0.92321318]
[1753632821764,0.3187281,119290.0,119280.0,0.98901318]
[1753632822018,0.003,119290.0,119280.0,0.98901318]
[1753632822528,0.003,119290.0,119280.0,0.95819318]
[1753632822731,0.003,119290.0,119280.0,0.92509318]
[1753632822946,0.3187281,119290.0,119280.0,0.92509318]
[1753632823365,0.38810047,119290.0,119280.0,0.4183596]
[1753632823592,0.3208281,119290.0,119280.0,0.51960325]
[1753632823811,0.3187281,119290.0,119280.0,0.58501325]
[1753632824039,0.3208281,119290.0,119280.0,0.58501325]
[1753632824258,0.41006842,119290.0,119280.0,0.33968347]
[1753632824475,0.40168556,119290.0,119280.0,0.51960346]
[1753632824698,0.34597549,119290.0,119280.0,0.58207346]
[1753632824915,0.34597542,119290.0,119280.0,0.58501346]
[1753632825348,0.35435807,119290.0,119280.0,0.58501346]
[1753632825563,0.33759291,119290.0,119280.0,0.45509346]
[1753632825768,0.33759291,119290.0,119280.0,0.58501346]
[1753632825986,0.0051,119290.0,119280.0,0.58501346]
[1753632826251,0.3187281,119290.0,119280.0,0.58501346]
[1753632826475,0.3187281,119290.0,119280.0,0.58497346]
[1753632826695,0.003,119290.0,119280.0,0.58497346]
[1753632827145,0.3187281,119290.0,119280.0,0.58501346]
[1753632828196,0.003,119290.0,119280.0,0.58501346]
[1753632828833,0.0051,119290.0,119280.0,0.58497346]
[1753632829048,0.003,119290.0,119280.0,0.58497346]
[1753632829684,0.003,119290.0,119280.0,0.61757346]
[1753632829901,0.003,119290.0,119280.0,0.58497346]
[1753632830121,0.003,119290.0,119280.0,0.45509346]
[1753632830336,0.003,119290.0,119280.0,0.58489346]
[1753632831784,0.3187281,119290.0,119280.0,0.58489346]
[1753632832718,0.003,119290.0,119280.0,0.58489346]
[1753632832938,0.3187281,119290.0,119280.0,0.45509346]
[1753632833156,0.3765381,119290.0,119280.0,0.51940346]
[1753632833368,0.06081,119290.0,119280.0,0.51940346]
[1753632833578,0.0051,119290.0,119280.0,0.58187346]
[1753632833815,0.3208281,119290.0,119280.0,0.58187346]
[1753632834258,0.3208281,119290.0,119280.0,0.58481346]
[1753632834926,0.3208281,119290.0,119280.0,0.45509346]
[1753632835143,0.0051,119290.0,119280.0,0.45509346]
[1753632835340,0.003,119290.0,119280.0,0.45509346]
[1753632835769,0.3187281,119290.0,119280.0,0.45509346]
[1753632836456,0.3207681,119290.0,119280.0,0.45509346]
[1753632836912,0.32529902,119290.0,119280.0,0.45509346]
[1753632837152,0.33368139,119290.0,119280.0,0.45509346]
[1753632837386,0.33368139,119290.0,119280.0,0.40509346]
[1753632837608,0.33572139,119290.0,119280.0,0.40509346]
[1753632838102,0.4114939,119290.0,119280.0,0.33130004]
[1753632838356,0.41689648,119290.0,119280.0,0.33130004]
[1753632838843,0.4252792,119290.0,119280.0,0.33130004]
[1753632839321,0.41689648,119290.0,119280.0,0.33130004]
[1753632839788,0.4252792,119290.0,119280.0,0.33130004]
[1753632840245,0.60132063,119290.0,119280.0,0.10399999]
[1753632840477,0.31955415,119290.0,119280.0,0.004]
[1753632840692,0.96415219,119290.0,119280.0,0.05399999]
[1753632841373,0.96415219,119290.0,119280.0,0.004]
[1753632841643,1.05648301,119290.0,119280.0,0.004]
[1753632842295,0.24713961,119280.0,119270.0,0.01117456]
[1753632842520,1.02353765,119280.0,119270.0,0.01117456]
[1753632842745,1.09092765,119280.0,119270.0,0.01117456]
[1753632843611,1.09092765,119280.0,119270.0,0.01717456]
[1753632844043,1.09088765,119280.0,119270.0,0.18486132]
[1753632844302,0.77374804,119280.0,119270.0,0.21799444]
[1753632844519,0.13176,119280.0,119270.0,0.36118624]
[1753632844710,0.3087487,119290.0,119280.0,0.18723089]
[1753632844937,0.4737887,119290.0,119280.0,0.19561445]
[1753632845190,0.27849495,119290.0,119280.0,0.25399787]
[1753632845470,0.29526053,119290.0,119280.0,0.26238115]
[1753632845733,0.46589917,119290.0,119280.0,0.26238122]
[1753632845948,0.78819819,119290.0,119280.0,0.25399787]
[1753632846166,0.61215669,119290.0,119280.0,0.26338122]
[1753632846405,0.4740939,119290.0,119280.0,0.27176394]
[1753632846627,0.47404375,119290.0,119280.0,0.33674394]
[1753632846850,0.45727902,119290.0,119280.0,0.33674394]
[1753632846988,0.14336237,119290.0,119280.0,0.33674394]
[1753632847217,0.46566131,119290.0,119280.0,0.33674394]
[1753632847412,0.32723902,119290.0,119280.0,0.33980394]
[1753632847615,0.45519902,119290.0,119280.0,0.33980394]
[1753632848035,0.45519902,119290.0,119280.0,0.42428124]
[1753632848633,0.46358131,119290.0,119280.0,0.42428124]
[1753632848843,0.32519902,119290.0,119280.0,0.42428124]
[1753632849084,0.45519902,119290.0,119280.0,0.42428124]
[1753632850993,0.46358131,119290.0,119280.0,0.42428124]
[1753632851226,0.45519902,119290.0,119280.0,0.42428124]
[1753632851433,0.45507902,119290.0,119280.0,0.55420124]
[1753632851871,0.13278,119290.0,119280.0,0.55420124]
[1753632852147,0.45507902,119290.0,119280.0,0.57960578]
[1753632852383,0.46346139,119290.0,119280.0,0.57960578]
[1753632853565,0.32519902,119290.0,119280.0,0.44968578]
[1753632853805,0.45503902,119290.0,119280.0,0.44968578]
[1753632854239,0.13274,119290.0,119280.0,0.44968578]
[1753632854472,0.46342139,119290.0,119280.0,0.44968578]
[1753632854922,0.4738439,119290.0,119280.0,0.44968578]
[1753632855157,0.4738439,119290.0,119280.0,0.44662578]
[1753632855409,0.4906092,119290.0,119280.0,0.44662578]
[1753632855643,1.09529205,119290.0,119280.0,0.001]
[1753632855858,1.09529205,119290.0,119280.0,0.01217456]
[1753632856728,1.09529205,119290.0,119280.0,0.18823082]
[1753632857152,1.09529205,119290.0,119280.0,0.01217456]
[1753632857355,1.08690947,119290.0,119280.0,0.001]
[1753632857569,1.08690947,119290.0,119280.0,0.01217456]
[1753632860747,1.08690947,119290.0,119280.0,0.001]
[1753632860994,1.51138677,119290.0,119280.0,0.001]
[1753632861240,1.17154677,119290.0,119280.0,0.01217456]
[1753632861501,1.17154677,119290.0,119280.0,0.001]
[1753632861713,1.17154677,119290.0,119280.0,0.01217456]
[1753632863294,1.17154677,119290.0,119280.0,0.001]
[1753632863489,1.17154677,119290.0,119280.0,0.01217456]
[1753632864399,1.17154677,119290.0,119280.0,0.001]
[1753632864640,1.08420947,119290.0,119280.0,0.17984726]
[1753632864867,0.76191045,119290.0,119280.0,0.18823089]
[1753632865112,0.46413181,119290.0,119280.0,0.17984726]
[1753632865356,0.68230589,119290.0,119280.0,0.24512726]
[1753632865608,0.67392331,119290.0,119280.0,0.24512726]
[1753632865835,0.67392331,119290.0,119280.0,0.19037082]
[1753632866073,0.36000722,119290.0,119280.0,0.20713752]
[1753632866311,0.65016624,119290.0,119280.0,0.27027752]
[1753632866508,0.65016624,119290.0,119280.0,0.26189424]
[1753632866731,0.51166345,119290.0,119280.0,0.24194726]
[1753632866972,0.67218345,119290.0,119280.0,0.24194726]
[1753632867441,1.04470961,119290.0,119280.0,0.18198726]
[1753632867658,0.0167667,119280.0,119270.0,0.26815319]
[1753632867878,0.7915246,119280.0,119270.0,0.27029319]
[1753632868128,0.14692656,119280.0,119270.0,0.27029319]
[1753632868358,0.96758079,119280.0,119270.0,0.25352537]
[1753632868542,0.97592414,119280.0,119270.0,0.26190935]
[1753632868810,0.80825144,119280.0,119270.0,0.26190935]
[1753632869060,0.64459804,119280.0,119270.0,0.27029319]
[1753632869282,0.45241902,119280.0,119270.0,0.27029319]
[1753632869505,0.77471804,119280.0,119270.0,0.27229319]
[1753632869728,0.77471804,119280.0,119270.0,0.27429319]
[1753632869951,0.77467804,119280.0,119270.0,0.27429319]
[1753632870634,0.45237902,119280.0,119270.0,0.27429319]
[1753632870855,0.45233902,119280.0,119270.0,0.27429319]
[1753632871078,0.77463804,119280.0,119270.0,0.27429319]
[1753632872983,0.45233902,119280.0,119270.0,0.27429319]
[1753632873840,0.77463804,119280.0,119270.0,0.27429319]
[1753632874038,0.78302104,119280.0,119270.0,0.27429319]
[1753632874270,0.77463804,119280.0,119270.0,0.27429319]
[1753632874942,0.13004,119280.0,119270.0,0.27429319]
[1753632875117,0.77463804,119280.0,119270.0,0.27429319]
[1753632875328,0.13004,119280.0,119270.0,0.27429319]
[1753632875532,0.77463804,119280.0,119270.0,0.27429319]
[1753632877342,0.13842307,119280.0,119270.0,0.27429319]
[1753632877558,0.78218174,119280.0,119270.0,0.27429319]
[1753632877779,0.78424174,119280.0,119270.0,0.27429319]
[1753632878397,0.77585874,119280.0,119270.0,0.27429319]
[1753632878643,0.78424174,119280.0,119270.0,0.27429319]
[1753632878859,0.77585874,119280.0,119270.0,0.27429319]
[1753632879037,0.78424174,119280.0,119270.0,0.27429319]
[1753632879239,0.77585874,119280.0,119270.0,0.27429319]
[1753632879481,0.78424174,119280.0,119270.0,0.27429319]
[1753632880325,0.78424174,119280.0,119270.0,0.20062935]
[1753632880326,0.89187837,119280.0,119270.0,0.20062935]
[1753632880564,0.89510823,119280.0,119270.0,0.2173971]
[1753632880753,0.92770823,119280.0,119270.0,0.2173971]
[1753632881191,0.91932495,119280.0,119270.0,0.2173971]
[1753632881397,0.91932488,119280.0,119270.0,0.2173971]
[1753632881851,0.91932481,119280.0,119270.0,0.2173971]
[1753632882306,0.92770802,119280.0,119270.0,0.2173971]
[1753632882503,0.91932481,119280.0,119270.0,0.2173971]
[1753632882998,0.92770802,119280.0,119270.0,0.2173971]
[1753632883250,0.91932481,119280.0,119270.0,0.2173971]
[1753632883645,0.92770802,119280.0,119270.0,0.2173971]
[1753632884099,0.0029,119290.0,119280.0,0.19282275]
[1753632884323,0.45511902,119290.0,119280.0,0.19496275]
[1753632884541,0.45511902,119290.0,119280.0,0.30810275]
[1753632885006,0.45507902,119290.0,119280.0,0.30810275]
[1753632885238,0.32519902,119290.0,119280.0,0.30810275]
[1753632885475,0.45507902,119290.0,119280.0,0.39358005]
[1753632885703,0.45507902,119290.0,119280.0,0.39458005]
[1753632886697,0.32519902,119290.0,119280.0,0.39458005]
[1753632886909,0.45507902,119290.0,119280.0,0.39458005]
[1753632887816,0.46346139,119290.0,119280.0,0.39458005]
[1753632889805,0.47184397,119290.0,119280.0,0.39458005]
[1753632889971,0.4718439,119290.0,119280.0,0.39458005]
[1753632890205,0.32519902,119290.0,119280.0,0.44498005]
[1753632890409,0.46334146,119290.0,119280.0,0.39458005]
[1753632891034,0.46334139,119290.0,119280.0,0.39458005]
[1753632891484,0.48216654,119290.0,119280.0,0.39458005]
[1753632891921,0.49054933,119290.0,119280.0,0.39458005]
[1753632892122,0.47172382,119290.0,119280.0,0.39458005]
[1753632892335,0.4801064,119290.0,119280.0,0.39458005]
[1753632892559,0.48848912,119290.0,119280.0,0.39458005]
[1753632892984,0.49687191,119290.0,119280.0,0.39458005]
[1753632894227,0.66453119,119290.0,119280.0,0.39458019]
[1753632894468,0.65819868,119290.0,119280.0,0.38619698]
[1753632894698,0.48195711,119290.0,119280.0,0.4029634]
[1753632894910,0.47152397,119290.0,119280.0,0.4029634]
[1753632895221,0.47990648,119290.0,119280.0,0.4029634]
[1753632895388,0.4882892,119290.0,119280.0,0.4029634]
[1753632895704,0.4631416,119290.0,119280.0,0.4029634]
[1753632895967,0.47990669,119290.0,119280.0,0.4029634]
[1753632896168,0.47152397,119290.0,119280.0,0.4029634]
[1753632896419,0.47990669,119290.0,119280.0,0.4029634]
[1753632896842,0.35034676,119290.0,119280.0,0.4029634]
[1753632897066,0.47986676,119290.0,119280.0,0.4029634]
[1753632897694,0.65590833,119290.0,119280.0,0.4029634]
[1753632898146,0.47986676,119290.0,119280.0,0.4029634]
[1753632898817,0.47148397,119290.0,119280.0,0.4029634]
[1753632899321,0.14918495,119290.0,119280.0,0.4029634]
[1753632899550,0.47148397,119290.0,119280.0,0.4029634]
[1753632899693,0.54095676,119290.0,119280.0,0.3376834]
[1753632899894,0.71699826,119290.0,119280.0,0.3376834]
[1753632900120,0.65791826,119290.0,119280.0,0.4010934]
[1753632900337,1.09007247,119290.0,119280.0,0.002]
[1753632900723,0.76777345,119290.0,119280.0,0.002]
[1753632901118,1.09007247,119290.0,119280.0,0.002]
[1753632906146,0.96055247,119290.0,119280.0,0.002]
[1753632906358,1.08987247,119290.0,119280.0,0.002]
[1753632912272,0.0029,119290.0,119280.0,0.14353005]
[1753632912551,0.96128205,119290.0,119280.0,0.06838]
[1753632912755,1.2547661,119290.0,119280.0,0.002]
[1753632912968,1.17128935,119290.0,119280.0,0.002]
[1753632914586,2.03498837,119290.0,119280.0,0.002]
[1753632914836,1.71268935,119290.0,119280.0,0.002]
[1753632915897,0.2246553,119260.0,119250.0,0.16771479]
[1753632916155,0.47689343,119260.0,119250.0,0.31017935]
[1753632916398,0.33906803,119260.0,119250.0,0.31856495]
[1753632916645,0.52179598,119280.0,119260.0,0.16770082]
[1753632916875,0.84676289,119280.0,119270.0,0.23406676]
[1753632917106,0.99965954,119280.0,119270.0,0.06638]
[1753632917349,0.17607095,119270.0,119260.0,0.11443]
[1753632917582,0.17608579,119260.0,119250.0,0.0644784]
[1753632917821,0.39845579,119260.0,119250.0,0.16776328]
[1753632918062,0.66167481,119260.0,119250.0,0.23117328]
[1753632918306,0.66167481,119260.0,119250.0,0.23414328]
[1753632919937,0.66167481,119260.0,119250.0,0.0694284]
[1753632920164,0.66167481,119260.0,119250.0,0.23714328]
[1753632920640,0.66167481,119260.0,119250.0,0.23697876]
[1753632920857,0.65328984,119260.0,119250.0,0.06926388]
[1753632921086,1.06576886,119260.0,119250.0,0.003]
[1753632921306,0.74670984,119260.0,119250.0,0.003]
[1753632921749,0.74346984,119260.0,119250.0,0.003]
[1753632921945,0.74346984,119260.0,119250.0,0.006]
[1753632922593,1.06900886,119260.0,119250.0,0.006]
[1753632922810,0.74670984,119260.0,119250.0,0.006]
[1753632923730,0.42960644,119260.0,119250.0,0.006]
[1753632923936,0.75190546,119260.0,119250.0,0.006]
[1753632924588,1.07744448,119260.0,119250.0,0.006]
[1753632924803,1.16192178,119260.0,119250.0,0.006]
[1753632925022,1.58639908,119260.0,119250.0,0.006]
[1753632925446,1.58639908,119260.0,119250.0,0.003]
[1753632925704,1.58639908,119260.0,119240.0,0.003]
[1753632925705,0.57940048,119250.0,119240.0,0.003]
[1753632925955,0.57940048,119250.0,119240.0,0.00304842]
[1753632925956,1.50028582,119250.0,119240.0,0.00304842]
[1753632926187,1.70676582,119250.0,119240.0,0.00304842]
[1753632926398,1.76051296,119250.0,119240.0,0.00304842]
[1753632926617,1.70676582,119250.0,119240.0,0.00304842]
[1753632927537,1.57400582,119250.0,119240.0,0.00304842]
[1753632927761,1.55735852,119250.0,119240.0,0.00304842]
[1753632927982,1.55735852,119250.0,119240.0,0.06520842]
[1753632928428,1.55735852,119250.0,119240.0,0.00607842]
[1753632928669,1.61936852,119250.0,119240.0,0.00707842]
[1753632929139,0.20144,119250.0,119240.0,0.26317585]
[1753632929384,0.67038945,119250.0,119240.0,0.37767585]
[1753632929844,0.67038931,119250.0,119240.0,0.37767585]
[1753632930098,0.68715995,119250.0,119240.0,0.37767585]
[1753632930329,0.69554555,119250.0,119240.0,0.37767585]
[1753632930551,0.33068413,119250.0,119240.0,0.37667585]
[1753632930804,0.46894938,119250.0,119240.0,0.37667585]
[1753632931019,0.33906831,119260.0,119250.0,0.29058808]
[1753632931247,0.46890824,119260.0,119250.0,0.31777418]
[1753632931476,0.46890824,119260.0,119250.0,0.38098418]
[1753632932133,0.47729307,119260.0,119250.0,0.38398418]
[1753632932356,0.47729299,119260.0,119250.0,0.38398418]
[1753632932598,0.15499397,119260.0,119250.0,0.38598418]
[1753632932836,0.47729299,119260.0,119250.0,0.38598418]
[1753632933294,0.47645329,119260.0,119250.0,0.37759893]
[1753632933517,0.47645329,119260.0,119250.0,0.38598418]
[1753632934064,0.48483819,119260.0,119250.0,0.37759893]
[1753632934289,0.16253917,119260.0,119250.0,0.377599]
[1753632934504,0.48483819,119260.0,119250.0,0.377599]
[1753632934731,0.47645329,119260.0,119250.0,0.36921361]
[1753632934997,0.47645329,119260.0,119250.0,0.37759893]
[1753632934998,0.48483812,119260.0,119250.0,0.37759893]
[1753632935213,0.48483812,119260.0,119250.0,0.36921361]
[1753632935445,0.47645344,119260.0,119250.0,0.38598439]
[1753632935677,0.48483819,119260.0,119250.0,0.35438446]
[1753632935901,0.45968386,119260.0,119250.0,0.36276971]
[1753632936135,0.47645337,119260.0,119250.0,0.35438446]
[1753632936380,0.46806854,119260.0,119250.0,0.36276978]
[1753632936619,0.47645337,119260.0,119250.0,0.36276978]
[1753632936850,0.47645337,119260.0,119250.0,0.35438418]
[1753632937080,0.47645329,119260.0,119250.0,0.35438411]
[1753632937298,0.35499826,119260.0,119250.0,0.34599886]
[1753632937555,0.47637358,119260.0,119250.0,0.30471347]
[1753632937991,0.33822861,119260.0,119250.0,0.31309872]
[1753632938195,0.17607081,119270.0,119260.0,0.22608579]
[1753632938404,0.65324219,119270.0,119260.0,0.28294082]
[1753632938896,0.6385543,119270.0,119260.0,0.11216]
[1753632939774,0.6385543,119270.0,119260.0,0.27986082]
[1753632940014,0.7315643,119270.0,119260.0,0.21770082]
[1753632940240,0.5708443,119270.0,119260.0,0.21770082]
[1753632940461,0.6385943,119270.0,119260.0,0.28186082]
[1753632940935,0.6385943,119270.0,119260.0,0.28494082]
[1753632941160,0.6385943,119270.0,119260.0,0.30171083]
[1753632941386,0.6385943,119270.0,119260.0,0.30371083]
[1753632941615,0.6385943,119270.0,119260.0,0.31209566]
[1753632941885,0.6365143,119270.0,119260.0,0.29532586]
[1753632942135,0.17894101,119290.0,119280.0,0.17605619]
[1753632942356,0.64776589,119290.0,119280.0,0.2329127]
[1753632942830,0.31916429,119290.0,119280.0,0.2329127]
[1753632943055,0.64146331,119290.0,119280.0,0.2329127]
[1753632943282,0.63308052,119290.0,119280.0,0.06216]
[1753632943478,0.63308052,119290.0,119280.0,4.842e-05]
[1753632943479,0.55694766,119290.0,119280.0,4.842e-05]
[1753632943744,0.68666766,119290.0,119280.0,4.842e-05]
[1753632944173,0.36436864,119290.0,119280.0,4.842e-05]
[1753632944397,0.68666766,119290.0,119280.0,4.842e-05]
[1753632944623,0.62465766,119290.0,119280.0,4.842e-05]
[1753632944862,0.68666766,119290.0,119280.0,4.842e-05]
[1753632945335,0.68666766,119290.0,119280.0,0.16772112]
[1753632945560,0.62465766,119290.0,119280.0,0.22988112]
[1753632945788,0.0029,119290.0,119280.0,0.37201138]
[1753632946016,0.0029,119290.0,119280.0,0.46487182]
[1753632946242,0.45487902,119290.0,119280.0,0.46487182]
[1753632946476,0.32519902,119290.0,119280.0,0.46487182]
[1753632946695,0.45487902,119290.0,119280.0,0.46487182]
[1753632947635,0.13258,119290.0,119280.0,0.46487182]
[1753632948050,0.13258,119290.0,119280.0,0.48232084]
[1753632948278,0.45487902,119290.0,119280.0,0.48232084]
[1753632948958,0.45487902,119290.0,119280.0,0.50778961]
[1753632949882,0.46326139,119290.0,119280.0,0.50778961]
[1753632950106,0.45487902,119290.0,119280.0,0.50778961]
[1753632950354,0.0029,119290.0,119280.0,0.50778961]
[1753632950569,0.45479902,119290.0,119280.0,0.50778961]
[1753632950789,0.46318131,119290.0,119280.0,0.50778961]
[1753632951458,0.47156368,119290.0,119280.0,0.50778961]
[1753632951701,0.46318131,119290.0,119280.0,0.50778961]
[1753632951920,0.45479902,119290.0,119280.0,0.50778961]
[1753632954023,0.0029,119290.0,119280.0,0.50778961]
[1753632954258,0.1325,119290.0,119280.0,0.50778961]
[1753632955097,0.13242,119290.0,119280.0,0.63734961]